[Event "AUT-ch U14 Boys 2022"]
[Site "Sankt Veit an der Glan"]
[Date "2022.04.12"]
[Round "5.4"]
[White "Jetzl, Julian"]
[Black "Pavlov, Alexander"]
[Result "0-1"]
[ECO "D35"]
[WhiteElo "1868"]
[BlackElo "1751"]
[Annotator "NA RC"]
[PlyCount "134"]
[EventDate "2022.04.11"]
[EventType "swiss"]
[EventCountry "AUT"]
[SourceTitle "playchess.com"]
[Source "ChessBase"]
[SourceQuality "1"]
[TimeControl "5400+30"]

1. d4 {[%emt 0:00:02]} d5 {[%emt 0:00:12]} 2. c4 {[%emt 0:00:12]} e6 {[%emt 0:00:20]} 3. Nc3 {[%emt 0:00:03]} Nf6 {[%emt 0:00:08]} 4. cxd5 {[%emt 0:00:11]} exd5 {[%emt 0:00:15]} 5. Bg5 {[%emt 0:00:08]} Be7 {[%emt 0:00:23]} 6. e3 {[%emt 0:00:43]} c6 {[%emt 0:00:13]} 7. Bd3 {[%emt 0:00:11]} Nbd7 {[%emt 0:00:13]} 8. Nge2 {[%emt 0:00:55]} O-O {[%emt 0:00:18]} 9. Qc2 {[%emt 0:00:05]} Re8 {[%emt 0:00:32]} 10. O-O {[%emt 0:00:48]} Nf8 {[%emt 0:00:05]} 11. Rad1 {[%emt 0:01:28]} g6 {[%emt 0:00:18]} 12. f3 {[%emt 0:02:52]} Ne6 {[%emt 0:00:29]} 13. Bh4 {[%emt 0:00:33]} b5 {[%emt 0:00:11]} 14. Bf2 {[%emt 0:05:40]} Bb7 {[%emt 0:00:43]} 15. Kh1 {[%emt 0:05:57]} a6 {[%emt 0:03:25]} 16. e4 {[%emt 0:07:38]} Rc8 {[%emt 0:01:17]} 17. e5 {[%emt 0:07:39]} Nh5 {[%emt 0:00:35]} 18. Qd2 {[%emt 0:12:17]} Bg5 {[%emt 0:06:40]} 19. Be3 {[%emt 0:00:29]} Bxe3 20. Qxe3 {[%emt 0:00:07]} Nhg7 {[%emt 0:01:03]} 21. b4 {[%emt 0:03:47]} f5 {[%emt 0:08:43]} 22. f4 {[%emt 0:04:23]} Qe7 {[%emt 0:03:27]} 23. a3 {[%emt 0:01:42]} Rf8 {[%emt 0:02:14]} 24. Qh3 {[%emt 0:07:18]} Rf7 {[%emt 0:07:29]} 25. g4 $2 {[%emt 0:05:28]} (25. Na2 $14 {keeps the upper hand.}) 25... Rcf8 {[%emt 0:03:15]} 26. g5 {[%emt 0:06:29]} Nh5 {[%emt 0:01:47]} 27. Qe3 {[%emt 0:01:42]} Ra8 {[%emt 0:01:12]} 28. Ng3 {[%emt 0:02:35]} Nhg7 {[%emt 0:01:49]} 29. h4 {[%emt 0:01:48]} (29. Kg1 $11) 29... Ne8 {[%emt 0:02:37]} 30. Rf2 {[%emt 0:04:56]} N8c7 {[%emt 0:02:32]} (30... a5 $11 {remains equal.}) 31. Rh2 {[%emt 0:01:13]} a5 {[%emt 0:07:23]} 32. Na2 {[%emt 0:04:46]} axb4 {[%emt 0:03:25]} 33. axb4 {[%emt 0:00:05]} Ra4 {[%emt 0:01:42]} 34. h5 {[%emt 0:01:24]} Na6 {[%emt 0:02:33]} 35. Rb1 {[%emt 0:01:53]} Nxb4 {[%emt 0:01:52]} 36. Nxb4 {[%emt 0:00:15]} Rxb4 {[%emt 0:00:06]} 37. hxg6 {[%emt 0:03:27]} (37. Rxb4 $16 Qxb4 38. hxg6 hxg6 39. Rh6 Qxd4 40. Qxd4 (40. Rxg6+ Kh8 $16) 40... Nxd4 41. Rxg6+ Kf8 42. Rh6) 37... Rxb1+ {[%emt 0:00:33]} 38. Bxb1 {[%emt 0:00:06]} hxg6 {[%emt 0:00:09]} 39. Nxf5 {[%emt 0:01:00]} Qb4 {[%emt 0:23:44]} 40. Nh6+ {[%emt 0:02:38]} Kg7 {[%emt 0:01:11]} 41. Nxf7 {[%emt 0:01:01]} Qxb1+ {[%emt 0:00:34]} 42. Kg2 {[%emt 0:00:10]} Kxf7 {[%emt 0:01:20]} 43. Rh7+ {[%emt 0:00:15]} Ke8 {[%emt 0:00:49]} 44. Rxb7 {[%emt 0:00:40]} Qb2+ {[%emt 0:00:10]} 45. Kh3 {[%emt 0:01:03]} Nxd4 {[%emt 0:01:10]} 46. e6 {[%emt 0:01:13]} Qa1 {[%emt 0:02:32]} 47. Rb8+ {[%emt 0:01:06]} Ke7 {[%emt 0:00:24]} 48. Rb7+ {[%emt 0:00:12]} Ke8 {[%emt 0:00:07]} 49. Kg2 {[%emt 0:01:57]} Qb2+ {[%emt 0:00:06]} 50. Kf1 {[%emt 0:00:25]} Qb1+ {[%emt 0:00:35]} 51. Kf2 {[%emt 0:00:27]} Qc2+ {[%emt 0:01:57]} 52. Ke1 {[%emt 0:00:34]} Qb1+ {[%emt 0:00:34]} 53. Kf2 {[%emt 0:00:23]} Qc2+ {[%emt 0:00:10]} 54. Kg1 {[%emt 0:00:47]} Qd1+ {[%emt 0:02:00]} 55. Kg2 {[%emt 0:00:45]} Qg4+ {[%emt 0:00:09]} 56. Kf2 {[%emt 0:00:24]} Qd1 {[%emt 0:01:49]} 57. Rb8+ {[%emt 0:00:34]} Ke7 {[%emt 0:01:02]} 58. Qa3+ {[%emt 0:00:14]} b4 {[%emt 0:00:41]} 59. Qa7+ {[%emt 0:00:52]} Kxe6 {[%emt 0:00:20]} 60. Re8+ {[%emt 0:00:22]} Kf5 {[%emt 0:00:08]} 61. Qd7+ {[%emt 0:00:18]} Kxf4 {[%emt 0:00:32]} 62. Qd6+ {[%emt 0:00:26]} Kxg5 {[%emt 0:01:16]} 63. Re5+ {[%emt 0:01:05]} Nf5 {[%emt 0:00:57]} 64. Qd8+ $2 {[%emt 0:01:11]} (64. Qxb4 $17 Qa1 65. Re1 Qa7+ 66. Kf3) 64... Kf4 {[%emt 0:00:26]} 65. Re2 {[%emt 0:00:36]} Qd4+ {[%emt 0:00:41]} ({Worse is} 65... Kg4 66. Re4+ Kh3 67. Qh8+ Qh5 68. Qxh5+ gxh5 69. Rxb4 $11) 66. Kg2 {[%emt 0:00:09]} Ne3+ {[%emt 0:00:42]} 67. Kg1 {[%emt 0:01:09]} Qd1+ {[%emt 0:00:31]} 0-1

[Event "AUT-ch U14 Boys 2022"]
[Site "Sankt Veit an der Glan"]
[Date "2022.04.12"]
[Round "5.5"]
[White "Gruenwald, Simon"]
[Black "Standhartinger, Joachim"]
[Result "1/2-1/2"]
[ECO "C54"]
[WhiteElo "1584"]
[BlackElo "1729"]
[Annotator "NA RC"]
[PlyCount "61"]
[EventDate "2022.04.11"]
[EventType "swiss"]
[EventCountry "AUT"]
[SourceTitle "playchess.com"]
[Source "ChessBase"]
[SourceQuality "1"]
[TimeControl "5400+30"]

1. e4 {[%emt 0:00:03]} e5 {[%emt 0:00:23]} 2. Nf3 {[%emt 0:00:03]} Nc6 {[%emt 0:00:04]} 3. Bc4 {[%emt 0:00:05]} Bc5 {[%emt 0:00:07]} 4. c3 {[%emt 0:00:03]} Nf6 {[%emt 0:00:04]} 5. d3 {[%emt 0:00:04]} O-O {[%emt 0:00:23]} 6. O-O {[%emt 0:00:05]} d6 {[%emt 0:00:41]} 7. h3 {[%emt 0:00:27]} h6 {[%emt 0:00:08]} 8. Re1 {[%emt 0:00:52]} a6 {[%emt 0:00:30]} 9. Bb3 {[%emt 0:00:44]} Ba7 {[%emt 0:01:08]} 10. Nbd2 {[%emt 0:00:13]} Be6 {[%emt 0:03:04]} 11. Nf1 {[%emt 0:00:42]} Ne7 {[%emt 0:00:31]} 12. Ng3 {[%emt 0:01:08]} Ng6 {[%emt 0:00:40]} 13. Nh2 {[%emt 0:01:39]} Nh7 {[%emt 0:15:04]} 14. Ng4 {[%emt 0:03:10]} Qd7 {[%emt 0:10:31]} 15. Kf1 {[%emt 0:29:50]} Bxg4 {[%emt 0:04:36]} 16. Qxg4 {[%emt 0:04:59]} Qxg4 {[%emt 0:00:59]} 17. hxg4 {[%emt 0:00:01]} Nf6 {[%emt 0:02:24]} 18. g5 {[%emt 0:04:50]} hxg5 {[%emt 0:05:15]} 19. Bxg5 {[%emt 0:02:14]} Ng4 {[%emt 0:14:52]} 20. f3 {[%emt 0:18:33]} Bf2 {[%emt 0:02:31]} 21. Nf5 {[%emt 0:00:47]} Bxe1 {[%emt 0:10:36]} 22. Rxe1 {[%emt 0:00:03]} Nf6 {[%emt 0:01:18]} 23. Bxf6 {[%emt 0:00:18]} gxf6 {[%emt 0:00:15]} 24. Kf2 {[%emt 0:00:59]} Rae8 {[%emt 0:06:06]} 25. Rh1 {[%emt 0:00:37]} Ne7 {[%emt 0:01:07]} 26. g4 {[%emt 0:00:47]} Nxf5 {[%emt 0:04:04]} 27. gxf5 {[%emt 0:00:01]} Kg7 {[%emt 0:00:13]} 28. Rg1+ {[%emt 0:00:07]} Kh7 {[%emt 0:00:17]} 29. Rh1+ {[%emt 0:00:05]} Kg7 {[%emt 0:00:08]} 30. Rg1+ {[%emt 0:00:03]} Kh7 {[%emt 0:00:11]} 31. Rh1+ {[%emt 0:00:05]} 1/2-1/2

[Event "AUT-ch U14 Boys 2022"]
[Site "Sankt Veit an der Glan"]
[Date "2022.04.12"]
[Round "5.7"]
[White "Radnaev, Nomin"]
[Black "Winkelbauer, Christian"]
[Result "1-0"]
[ECO "A88"]
[WhiteElo "1766"]
[BlackElo "1577"]
[Annotator "NA RC"]
[PlyCount "81"]
[EventDate "2022.04.11"]
[EventType "swiss"]
[EventCountry "AUT"]
[SourceTitle "playchess.com"]
[Source "ChessBase"]
[SourceQuality "1"]
[TimeControl "5400+30"]

1. d4 {[%emt 0:00:01]} f5 {[%emt 0:00:02]} 2. Nf3 {[%emt 0:00:14]} Nf6 {[%emt 0:00:11]} 3. g3 {[%emt 0:00:03]} g6 {[%emt 0:00:11]} 4. Bg2 {[%emt 0:00:04]} Bg7 {[%emt 0:00:02]} 5. O-O {[%emt 0:00:16]} O-O {[%emt 0:00:29]} 6. c4 {[%emt 0:00:03]} d6 {[%emt 0:00:37]} 7. Nc3 {[%emt 0:00:26]} c6 {[%emt 0:00:50]} 8. Re1 {[%emt 0:03:55]} Qe8 {[%emt 0:01:08]} 9. e4 {[%emt 0:00:40]} fxe4 {[%emt 0:01:37]} 10. Nxe4 {[%emt 0:00:22]} Nxe4 {[%emt 0:02:12]} 11. Rxe4 {[%emt 0:00:19]} Bf5 {[%emt 0:01:05]} 12. Re1 {[%emt 0:02:08]} Bg4 {[%emt 0:02:21]} 13. Be3 {[%emt 0:17:05]} Bxf3 {[%emt 0:09:46]} 14. Bxf3 {[%emt 0:00:07]} Qf7 {[%emt 0:00:17]} 15. Be2 {[%emt 0:01:06]} e5 {[%emt 0:01:19]} 16. dxe5 {[%emt 0:01:25]} Bxe5 {[%emt 0:00:15]} 17. f4 {[%emt 0:00:53]} Bxb2 {[%emt 0:05:12]} 18. Rb1 {[%emt 0:00:10]} Bc3 {[%emt 0:00:15]} 19. Rf1 {[%emt 0:01:02]} Qg7 {[%emt 0:03:20]} 20. Qxd6 {[%emt 0:03:39]} Na6 {[%emt 0:02:03]} 21. Rbd1 {[%emt 0:04:43]} Rfe8 {[%emt 0:03:55]} 22. Rf3 {[%emt 0:00:28]} Bb4 {[%emt 0:01:04]} 23. c5 {[%emt 0:12:02]} Ba5 {[%emt 0:07:18]} 24. Bc4+ {[%emt 0:01:54]} Kh8 {[%emt 0:01:05]} 25. Bd4 {[%emt 0:00:44]} Rad8 {[%emt 0:00:20]} 26. Bxg7+ {[%emt 0:00:51]} Kxg7 {[%emt 0:00:02]} 27. Bxa6 {[%emt 0:03:37]} Rxd6 {[%emt 0:01:21]} 28. Rxd6 {[%emt 0:00:51]} bxa6 {[%emt 0:00:23]} 29. Rxc6 {[%emt 0:00:15]} Re1+ {[%emt 0:02:05]} 30. Kg2 {[%emt 0:01:05]} Rc1 {[%emt 0:00:41]} 31. Ra3 {[%emt 0:01:20]} Bb4 {[%emt 0:02:38]} 32. Ra4 {[%emt 0:01:17]} Bxc5 {[%emt 0:01:06]} 33. Raxa6 {[%emt 0:00:14]} Rg1+ {[%emt 0:00:37]} 34. Kh3 {[%emt 0:00:47]} Bb6 {[%emt 0:00:12]} 35. Ra4 {[%emt 0:00:37]} Re1 {[%emt 0:00:46]} 36. Rac4 {[%emt 0:00:24]} h5 {[%emt 0:02:37]} 37. Rc2 {[%emt 0:01:08]} Be3 {[%emt 0:02:50]} 38. Re6 {[%emt 0:00:33]} Kf7 {[%emt 0:01:22]} 39. Re4 {[%emt 0:00:04]} Kf6 {[%emt 0:01:06]} 40. Rc6+ {[%emt 0:00:13]} Kf7 {[%emt 0:00:28]} 41. Rce6 {[%emt 0:00:06]} 1-0

[Event "AUT-ch U14 Boys 2022"]
[Site "Sankt Veit an der Glan"]
[Date "2022.04.12"]
[Round "5.8"]
[White "Maier, Tobias"]
[Black "Guba, Viktor"]
[Result "1/2-1/2"]
[ECO "B30"]
[WhiteElo "1388"]
[BlackElo "1598"]
[Annotator "NA RC"]
[PlyCount "88"]
[EventDate "2022.04.11"]
[EventType "swiss"]
[EventCountry "AUT"]
[SourceTitle "playchess.com"]
[Source "ChessBase"]
[SourceQuality "1"]
[TimeControl "5400+30"]

1. e4 {[%emt 0:00:03]} c5 {[%emt 0:00:14]} 2. Nf3 {[%emt 0:00:06]} Nc6 {[%emt 0:00:29]} 3. Bb5 {[%emt 0:00:13]} d6 {[%emt 0:00:26]} 4. Bxc6+ {[%emt 0:00:15]} bxc6 {[%emt 0:00:18]} 5. d3 {[%emt 0:00:12]} e5 {[%emt 0:01:11]} 6. Nc3 {[%emt 0:00:42]} Nf6 {[%emt 0:01:51]} 7. O-O {[%emt 0:00:11]} g6 {[%emt 0:01:11]} 8. h3 {[%emt 0:00:17]} Bg7 {[%emt 0:01:00]} 9. Be3 {[%emt 0:01:25]} O-O {[%emt 0:01:08]} 10. Qd2 {[%emt 0:00:18]} Ba6 {[%emt 0:01:25]} 11. Bh6 {[%emt 0:00:44]} Re8 {[%emt 0:03:05]} 12. Bxg7 {[%emt 0:01:04]} Kxg7 {[%emt 0:00:40]} 13. Rfe1 {[%emt 0:01:06]} Qc7 {[%emt 0:02:49]} 14. Ne2 {[%emt 0:02:55]} c4 {[%emt 0:08:56]} 15. Ng3 {[%emt 0:01:50]} Rad8 {[%emt 0:05:30]} 16. Nf5+ {[%emt 0:02:14]} Kh8 {[%emt 0:10:46]} 17. Qh6 {[%emt 0:14:48]} Nh5 {[%emt 0:01:32]} 18. Ng7 {[%emt 0:08:59]} Rg8 {[%emt 0:05:41]} 19. Nxh5 {[%emt 0:00:55]} gxh5 {[%emt 0:00:05]} 20. Qf6+ {[%emt 0:00:24]} Rg7 {[%emt 0:00:13]} 21. Nh4 {[%emt 0:00:52]} Kg8 {[%emt 0:05:54]} 22. Nf5 {[%emt 0:00:16]} Rg6 {[%emt 0:00:05]} 23. Ne7+ {[%emt 0:00:32]} Kf8 {[%emt 0:00:18]} 24. Nxg6+ {[%emt 0:00:14]} hxg6 {[%emt 0:00:07]} 25. d4 {[%emt 0:01:23]} exd4 {[%emt 0:03:14]} 26. Qxd4 {[%emt 0:00:48]} Kg8 {[%emt 0:01:20]} 27. Rad1 {[%emt 0:02:39]} Qe7 {[%emt 0:03:39]} 28. e5 {[%emt 0:01:39]} d5 {[%emt 0:00:11]} 29. Qf4 {[%emt 0:00:40]} g5 {[%emt 0:01:54]} 30. Qf6 {[%emt 0:00:50]} Qxf6 {[%emt 0:01:39]} 31. exf6 {[%emt 0:00:04]} Kh7 {[%emt 0:00:19]} 32. Re7 {[%emt 0:00:24]} Kg6 {[%emt 0:00:05]} 33. Rxa7 {[%emt 0:00:19]} Bc8 {[%emt 0:00:09]} 34. Ra8 {[%emt 0:00:31]} Bg4 {[%emt 0:00:21]} 35. Rxd8 {[%emt 0:00:38]} Bxd1 {[%emt 0:00:08]} 36. a4 {[%emt 0:00:46]} Bxc2 {[%emt 0:00:14]} 37. a5 {[%emt 0:00:06]} Bd3 {[%emt 0:00:03]} 38. a6 {[%emt 0:00:17]} c3 {[%emt 0:00:05]} 39. bxc3 {[%emt 0:01:52]} Bxa6 {[%emt 0:00:13]} 40. Rd6 {[%emt 0:00:18]} Bb5 {[%emt 0:00:06]} 41. g4 {[%emt 0:00:51]} hxg4 {[%emt 0:00:08]} 42. hxg4 {[%emt 0:00:05]} Be2 {[%emt 0:00:10]} 43. Rxc6 {[%emt 0:00:46]} Bxg4 {[%emt 0:00:05]} 44. Kg2 {[%emt 0:01:19]} Be6 {[%emt 0:00:34]} 1/2-1/2

[Event "AUT-ch U14 Boys 2022"]
[Site "Sankt Veit an der Glan"]
[Date "2022.04.12"]
[Round "5.9"]
[White "Wohlgenannt, Nicolas"]
[Black "Gan-Erdene, Ganbat"]
[Result "0-1"]
[ECO "C55"]
[WhiteElo "1692"]
[BlackElo "1526"]
[Annotator "NA RC"]
[PlyCount "46"]
[EventDate "2022.04.11"]
[EventType "swiss"]
[EventCountry "AUT"]
[SourceTitle "playchess.com"]
[Source "ChessBase"]
[SourceQuality "1"]
[TimeControl "5400+30"]

1. e4 {[%emt 0:00:03]} e5 {[%emt 0:00:09]} 2. Nf3 {[%emt 0:00:04]} Nc6 {[%emt 0:00:03]} 3. d4 {[%emt 0:00:05]} exd4 {[%emt 0:00:03]} 4. Bc4 {[%emt 0:00:08]} Nf6 {[%emt 0:00:44]} 5. e5 {[%emt 0:00:09]} d5 {[%emt 0:00:15]} 6. Bb5 {[%emt 0:00:05]} Ne4 {[%emt 0:00:36]} 7. Nxd4 {[%emt 0:00:07]} Bd7 {[%emt 0:01:01]} 8. Bxc6 {[%emt 0:00:07]} Bxc6 9. O-O {[%emt 0:00:49]} Qd7 {[%emt 0:02:17]} 10. Be3 {[%emt 0:00:54]} O-O-O {[%emt 0:02:24]} 11. f3 {[%emt 0:01:19]} Nc5 {[%emt 0:00:43]} 12. Nc3 {[%emt 0:00:34]} Ne6 {[%emt 0:02:49]} 13. f4 {[%emt 0:01:41]} Nxd4 {[%emt 0:04:42]} 14. Qxd4 {[%emt 0:01:13]} b6 {[%emt 0:00:12]} 15. b4 {[%emt 0:02:54]} Bb7 {[%emt 0:01:36]} 16. b5 {[%emt 0:02:59]} Bc5 {[%emt 0:01:23]} 17. Qd3 {[%emt 0:02:01]} Bxe3+ {[%emt 0:02:30]} 18. Qxe3 {[%emt 0:00:06]} d4 {[%emt 0:00:09]} 19. Qg3 {[%emt 0:00:28]} dxc3 {[%emt 0:00:25]} 20. Qxc3 {[%emt 0:00:11]} Qd5 {[%emt 0:01:22]} 21. Rf3 {[%emt 0:00:55]} Qd4+ {[%emt 0:00:23]} 22. Qxd4 {[%emt 0:00:00]} Rxd4 {[%emt 0:00:06]} 23. Rg3 {[%emt 0:00:00]} g6 {[%emt 0:00:19]} 0-1

[Event "AUT-ch U14 Boys 2022"]
[Site "Sankt Veit an der Glan"]
[Date "2022.04.12"]
[Round "5.12"]
[White "Roessler, Felix"]
[Black "Kienboeck, Samuel"]
[Result "1-0"]
[ECO "D06"]
[WhiteElo "1512"]
[BlackElo "1068"]
[Annotator "NA RC"]
[PlyCount "77"]
[EventDate "2022.04.11"]
[EventType "swiss"]
[EventCountry "AUT"]
[SourceTitle "playchess.com"]
[Source "ChessBase"]
[SourceQuality "1"]
[TimeControl "5400+30"]

1. d4 {[%emt 0:00:01]} d5 {[%emt 0:00:24]} 2. c4 {[%emt 0:00:05]} Nf6 {[%emt 0:00:18]} 3. cxd5 {[%emt 0:00:05]} Nxd5 {[%emt 0:00:15]} 4. e4 {[%emt 0:00:04]} Nf6 {[%emt 0:03:29]} 5. Nc3 {[%emt 0:00:05]} Nc6 {[%emt 0:01:31]} 6. d5 {[%emt 0:01:21]} Ne5 {[%emt 0:01:51]} 7. f4 {[%emt 0:00:13]} Ng6 {[%emt 0:03:10]} 8. e5 {[%emt 0:03:19]} Ng8 {[%emt 0:02:41]} 9. Bc4 {[%emt 0:13:48]} e6 {[%emt 0:01:52]} 10. Qb3 {[%emt 0:00:45]} Qh4+ {[%emt 0:06:07]} 11. g3 {[%emt 0:03:57]} Qe7 {[%emt 0:01:53]} 12. Be3 {[%emt 0:07:01]} Qb4 {[%emt 0:03:50]} 13. dxe6 {[%emt 0:07:05]} fxe6 {[%emt 0:00:52]} 14. Bxe6 {[%emt 0:02:09]} Qxb3 {[%emt 0:02:06]} 15. Bxb3 {[%emt 0:00:12]} Bb4 {[%emt 0:02:18]} 16. Bd2 {[%emt 0:02:56]} Bxc3 {[%emt 0:02:31]} 17. Bxc3 {[%emt 0:00:21]} Bf5 {[%emt 0:00:38]} 18. Bd5 {[%emt 0:01:28]} O-O-O {[%emt 0:01:21]} 19. Bf3 {[%emt 0:11:03]} h5 {[%emt 0:05:58]} 20. Ne2 {[%emt 0:02:13]} Rd3 {[%emt 0:04:58]} 21. Rf1 {[%emt 0:05:20]} Bg4 {[%emt 0:08:51]} 22. Bxg4+ {[%emt 0:01:27]} hxg4 {[%emt 0:00:06]} 23. Rf2 {[%emt 0:01:01]} Rf3 {[%emt 0:03:25]} 24. h4 {[%emt 0:04:07]} gxh3 {[%emt 0:01:21]} 25. Rxf3 {[%emt 0:00:13]} h2 {[%emt 0:00:08]} 26. Kd2 {[%emt 0:00:08]} h1=Q {[%emt 0:00:28]} 27. Rxh1 {[%emt 0:00:07]} Rxh1 {[%emt 0:00:12]} 28. f5 {[%emt 0:01:02]} Nh8 {[%emt 0:02:11]} 29. e6 {[%emt 0:04:47]} Nf6 {[%emt 0:01:48]} 30. g4 {[%emt 0:02:37]} Ne4+ {[%emt 0:03:57]} 31. Kc2 {[%emt 0:01:49]} Nxc3 {[%emt 0:02:40]} 32. Kxc3 {[%emt 0:00:41]} Rd1 {[%emt 0:01:32]} 33. Rd3 {[%emt 0:01:03]} Rxd3+ {[%emt 0:01:00]} 34. Kxd3 {[%emt 0:00:05]} Kd8 {[%emt 0:00:11]} 35. Ke4 {[%emt 0:00:27]} Ke7 {[%emt 0:00:49]} 36. Ke5 {[%emt 0:00:16]} c6 {[%emt 0:00:51]} 37. g5 {[%emt 0:00:22]} a5 {[%emt 0:01:25]} 38. a4 {[%emt 0:02:51]} b5 {[%emt 0:00:14]} 39. Nd4 {[%emt 0:01:08]} 1-0

[Event "AUT-ch U14 Boys 2022"]
[Site "Sankt Veit an der Glan"]
[Date "2022.04.13"]
[Round "6.1"]
[White "Ernst, Robert"]
[Black "Nguyen, Le Minh Phu"]
[Result "1/2-1/2"]
[ECO "B23"]
[WhiteElo "1792"]
[BlackElo "2080"]
[Annotator "TA"]
[PlyCount "49"]
[EventDate "2022.04.11"]
[EventType "swiss"]
[EventCountry "AUT"]
[SourceTitle "playchess.com"]
[Source "ChessBase"]
[SourceQuality "1"]
[TimeControl "5400+30"]

{[%evp 9,49,22,56,37,43,50,31,29,39,-20,-8,-26,-8,0,0,-19,18,28,37,19,27,23,23,14,29,10,41,44,66,62,68,47,95,99,175,0,0,0,153,0,0,0]} 1. e4 {[%emt 0:00:03]} c5 {[%emt 0:00:06]} 2. Nc3 {[%emt 0:00:08]} d6 {[%emt 0:00:18]} 3. d4 {[%emt 0:00:09]} cxd4 {[%emt 0:00:53]} 4. Qxd4 {[%emt 0:00:09]} Nf6 {[%emt 0:02:00]} 5. Be3 {[%emt 0:01:54] [#]} e5 $146 {[%emt 0:00:47]} ({Predecessor:} 5... Nc6 6. Qd2 Bd7 7. f3 Rc8 8. O-O-O a6 9. g4 b5 10. Kb1 e6 11. Nge2 Ne5 {0-1 (32) Olcayoz,A (2244)-Gokerkan,C (2465) Tornelo INT 2021}) 6. Qd3 {[%emt 0:03:48] B23: Closed Sicilian: Lines without g3.} Be7 {[%emt 0:00:52]} 7. O-O-O {[%emt 0:00:27]} a6 {[%emt 0:00:26]} 8. Kb1 {[%emt 0:02:05] White is slightly better.} Nbd7 {[%emt 0:00:15]} 9. Nf3 {[%emt 0:01:29]} (9. Nge2 $14) 9... Qc7 {[%emt 0:02:18]} 10. Nh4 {[%emt 0:24:07]} Nc5 {[%emt 0:00:32]} 11. Bxc5 {[%emt 0:00:17]} Qxc5 {[%emt 0:00:07]} 12. f3 {[%emt 0:02:13] Prevents Ng4.} b5 {[%emt 0:01:28]} 13. Nf5 $1 {[%emt 0:01:34]} Bxf5 14. exf5 {[%emt 0:00:10]} Rc8 {[%emt 0:01:44][%cal Od6d5]} 15. Ne4 {[%emt 0:03:57]} Nxe4 {[%emt 0:10:21]} 16. fxe4 {[%emt 0:08:18]} O-O {[%emt 0:00:34]} 17. Be2 {[%emt 0:00:35]} (17. h4 {with more complications.} Qf2 18. c3 Rc4 19. a3) 17... Qb6 {[%emt 0:00:16]} 18. g4 {[%emt 0:02:10][%cal Bg2g4,Bg4g5][%mdl 32]} Rc6 {[%emt 0:01:52]} 19. h4 {[%emt 0:00:41]} Rfc8 {[%emt 0:00:31]} 20. Rd2 {[%emt 0:01:11]} Qa5 {[%emt 0:07:26] [#]} (20... Rc4 $14) 21. g5 $1 $16 {[%emt 0:07:37][%cal Of5f6] Black must now prevent f6!} Rc4 {[%emt 0:00:22]} (21... Qb4 $16) 22. Qd5 {[%emt 0:00:09]} R4c5 {[%emt 0:50:17]} 23. Qd3 {[%emt 0:00:14][%cal Of5f6] Threatens to win with f6!} Rc4 $1 {[%emt 0:00:09] And now ...Rd4 would win.} 24. Qd5 {[%emt 0:00:06] Prevents Rd4.} ({White should try} 24. c3 $16) 24... R4c5 $11 {[%emt 0:00:52]} 25. Qd3 {[%emt 0:00:05] Weighted Error Value: White=0.32/Black=0.13 (very precise)} 1/2-1/2